fUSD/lending_fUSD_20240923
["ID","MTS","AMOUNT","RATE_DAILY","PERIOD"]
[338915639,1727071832866,-182.57440236,0.000129,2]
[338915640,1727071832876,-182.57440236,0.000129,2]
[338915641,1727071832886,-182.57440236,0.000129,2]
[338915642,1727071832895,-182.57440236,0.000129,2]
[338915643,1727071832905,-182.57440236,0.000129,2]
[338915644,1727071832915,-182.57440236,0.000129,2]
[338915645,1727071832924,-182.57440236,0.000129,2]
[338915646,1727071832934,-182.57440236,0.000129,2]
[338915647,1727071832944,-182.57440236,0.000129,2]
[338915648,1727071832953,-182.57440236,0.000129,2]
[338915649,1727071832962,-182.57440236,0.000129,2]
[338915650,1727071832973,-182.57440236,0.000129,2]
[338915651,1727071832982,-182.57440236,0.000129,2]
[338915652,1727071832993,-183.07,0.000129,2]
[338915653,1727071833002,-327.31635818,0.000129,2]
[338915654,1727071833011,-500.0,0.00012973,2]
[338915655,1727071833020,-500.0,0.00012973,2]
[338915656,1727071833030,-500.0,0.00012973,2]
[338915657,1727071833040,-152.34,0.0001299,2]
[338915658,1727071833049,-637.39693888,0.00012997,2]
[338915659,1727071833059,-500.0,0.00012999,2]
[338915660,1727071833069,-500.0,0.00012999,2]
[338915661,1727071833297,-500.0,0.00012999,2]
[338915662,1727071833307,-500.0,0.00012999,2]
[338915663,1727071833317,-500.0,0.00012999,2]
[338915664,1727071833326,-646.24905184,0.00012999,2]
[338915665,1727071833335,-500.0,0.00012999,2]
[338915666,1727071833345,-17.66337915,0.00012999,2]
[338915668,1727071838282,-482.33662085,0.00012999,2]
[338915669,1727071838291,-500.0,0.00012999,2]
[338915670,1727071838301,-500.0,0.00012999,2]
[338915671,1727071838310,-500.0,0.00012999,2]
[338915672,1727071838320,-500.0,0.00012999,2]
[338915673,1727071838329,-500.0,0.00012999,2]
[338915674,1727071838339,-237.64962491,0.00012999,2]
[338915675,1727071838349,-500.0,0.00012999,2]
[338915676,1727071838359,-507.07596464,0.00012999,2]
[338915677,1727071838368,-500.0,0.00012999,2]
[338915678,1727071838377,-500.0,0.00012999,2]
[338915679,1727071838386,-28.86020303,0.00012999,2]
[338915680,1727071838406,-421.13979697,0.00012999,2]
[338915681,1727071838415,-439.89743683,0.00012999,2]
[338915682,1727071838427,-60.10256317,0.00012999,2]
[338915683,1727071838436,-500.0,0.00012999,2]
[338915684,1727071838446,-9802.31991111,0.00013,2]
[338915685,1727071838457,-14225.01632046,0.00013,2]
[338915686,1727071838469,-32552.84912431,0.00013,2]
[338915687,1727071838480,-7094.29459475,0.00013,2]
[338915688,1727071838491,-3161.98146989,0.00013,2]
[338915689,1727071838503,-875.69451227,0.00013,2]
[338915690,1727071838514,-1284.68,0.00013,2]
[338915691,1727071838526,-584.643,0.00013,2]
[338915692,1727071838579,-1433.91078519,0.00013,2]
[338915693,1727071838591,-668.26362144,0.00013,2]
[338915694,1727071838602,-1291.06,0.00013,2]
[338915695,1727071838614,-5585.910763,0.00013,2]
[338915696,1727071838623,-53776.61405341,0.00013,2]
[338915697,1727071838635,-345.0,0.00013,2]
[338915698,1727071838649,-4827.45922204,0.00013,2]
[338915699,1727071838660,-405.47689923,0.00013,2]
[338915700,1727071838672,-1078325.57601942,0.00013,2]
[338915701,1727071838683,-783.29357462,0.00013,2]
[338915702,1727071838694,-1768.18949562,0.00013,2]
[338915703,1727071838707,-31088.34445756,0.00013,2]
[338915704,1727071838719,-2512.71029907,0.00013,2]
[338915705,1727071838731,-26612.30646997,0.00013,2]
[338915706,1727071838742,-1278.73746,0.00013,2]
[338915707,1727071838789,-16045.4338332,0.00013,2]
[338915708,1727071838800,-421.27749924,0.00013,2]
[338915709,1727071838811,-1306.63194,0.00013,2]
[338915710,1727071838823,-1786.89851028,0.00013,2]
[338915712,1727071838834,-927.39443383,0.00013,2]
[338915714,1727071838845,-867.57638522,0.00013,2]
[338915717,1727071838864,-6022.5791488,0.00013,2]
[338915719,1727071838876,-426.0,0.00013,2]
[338915721,1727071838887,-468.50164004,0.00013,2]
[338915723,1727071838898,-288.55661629,0.00013,2]
[338915725,1727071838910,-1659.66309036,0.00013,2]
[338915728,1727071838929,-1157181.16511462,0.00013,2]
[338915731,1727071838941,-880.16105896,0.00013,2]
[338915733,1727071838952,-453.30570109,0.00013,2]
[338915735,1727071838963,-563.31326908,0.00013,2]
[338915737,1727071838975,-428.61941707,0.00013,2]
[338915740,1727071838987,-824.51259311,0.00013,2]
[338915742,1727071838998,-585.88950512,0.00013,2]
[338915744,1727071839009,-491.08055286,0.00013,2]
[338915746,1727071839020,-319.8,0.00013,2]
[338915748,1727071839031,-793.57344363,0.00013,2]
[338915750,1727071839043,-3088.10000001,0.00013,2]
[338915840,1727071840138,-1387.96978456,0.00013,2]
[338915846,1727071840198,-268488.46732053,0.00013,2]
[338915849,1727071840211,-44179.61026134,0.00013,2]
[338915851,1727071840222,-389.16323654,0.00013,2]
[338915855,1727071840262,-2607.20000779,0.00013,2]
[338915858,1727071840322,-1396.69046004,0.00013,2]
[338915864,1727071840440,-104166.80425803,0.00013,2]
[338915867,1727071840452,-656.39491586,0.00013,2]
[338915869,1727071840464,-3014.50300993,0.00013,2]
[338916159,1727071843285,-411.00140033,0.00013,2]
[338916329,1727071846344,-500.0,0.00012999,2]
[338916330,1727071846354,-500.0,0.00012999,2]
[338916331,1727071846364,-373.14373637,0.00012999,2]
[338916332,1727071846373,-102339.18723363,0.00013,2]
[338916333,1727071846404,-592.7955838,0.00013,2]
[338916335,1727071892142,-176.43,0.00012553,2]
[338916336,1727071892162,-500.0,0.00012973,2]
[338916337,1727071892181,-500.0,0.00012973,2]
[338916338,1727071894012,12145.57,0.00013,2]
[338916339,1727071904104,500.0,0.00010084,2]
[338916340,1727071904583,500.0,0.00010084,2]
[338916341,1727071905706,500.0,0.00011454,2]
[338916342,1727071906176,1000.0,0.00012,12]
[338916346,1727072106158,181.04411239,0.00021,60]
[338916347,1727072143710,150.0,0.00010084,2]
[338916348,1727072143735,150.0,0.00010084,2]
[338916349,1727072143760,150.0,0.00010084,2]
[338916350,1727072143789,50.0,0.00010084,2]
[338916351,1727072144793,150.0,0.00011454,2]
[338916352,1727072144817,150.0,0.00011454,2]
[338916353,1727072144840,200.0,0.00011454,2]
[338916354,1727072149888,150.0,0.00010084,2]
[338916355,1727072149910,150.0,0.00010084,2]
[338916356,1727072149931,150.0,0.00010084,2]
[338916357,1727072149952,50.0,0.00010084,2]
[338916358,1727072151514,100.0,0.00011454,2]
[338916359,1727072151534,150.0,0.00011454,2]
[338916360,1727072151555,150.0,0.00011454,2]
[338916361,1727072151576,100.0,0.00011454,2]
[338916362,1727072165299,150.0,0.00010084,2]
[338916363,1727072165319,150.0,0.00010084,2]
[338916364,1727072165339,150.0,0.00010084,2]
[338916365,1727072165360,111.96063708,0.00010084,2]
[338916366,1727072180255,150.0,0.00010234,2]
[338916367,1727072180283,150.0,0.00010234,2]
[338916368,1727072180314,93.4,0.00010234,2]
[338916369,1727072327637,500.0,0.00010084,2]
[338916370,1727072328203,500.0,0.00010084,2]
[338916371,1727072329217,37.0,0.00011454,2]
[338916372,1727072330069,-463.0,0.00011454,2]
[338916373,1727072330092,-37.0,0.00011454,2]
[338916374,1727072332090,-463.0,0.00011454,2]
[338916375,1727072345147,150.0,9.589e-05,2]
[338916376,1727072345168,26.6,9.589e-05,2]
[338916377,1727072376841,-831.25,0.00011874,2]
[338916378,1727072415488,-23512.78,0.00011866,2]
[338916379,1727072522379,150.0,0.00010959,2]
[338916380,1727072522405,5.06,0.00010959,2]
[338916381,1727072523601,-151.02244468,0.00011902,2]
[338916382,1727072524703,-167.63655556,0.00011902,2]
[338916383,1727072525518,-167.63655556,0.00011902,2]
[338916384,1727072525989,-167.63655556,0.00011902,2]
[338916385,1727072574697,-116.04788864,0.00011902,2]
[338916386,1727072574721,-1501.73286933,0.00011929,2]
[338916387,1727072574744,-1134.21924203,0.00011931,2]
[338916388,1727072577660,-166.42,0.00011931,2]
[338916389,1727072579294,-150.0,0.00011931,2]
[338916391,1727072596066,150.0,0.00010959,2]
[338916392,1727072596088,150.0,0.00010959,2]
[338916393,1727072596108,150.0,0.00010959,2]
[338916394,1727072596129,150.0,0.00010959,2]
[338916395,1727072596149,51.08,0.00010959,2]
[338916441,1727072796178,150.0,0.00011,2]
[338916442,1727072796201,150.0,0.00011,2]
[338916443,1727072796222,150.0,0.00011,2]
[338916444,1727072796244,150.0,0.00011,2]
[338916445,1727072796266,150.0,0.00011,2]
[338916446,1727072796287,150.0,0.00011,2]
[338916447,1727072796310,150.0,0.00011,2]
[338916448,1727072804292,420.84,9.275e-05,2]
[338916459,1727072874485,150.0,0.00011083,2]
[338916460,1727072874508,150.0,0.00011083,2]
[338916461,1727072874530,150.0,0.00011083,2]
[338916462,1727072874552,150.0,0.00011083,2]
[338916463,1727072874573,150.0,0.00011083,2]
[338916464,1727072874594,150.0,0.00011083,2]
[338916465,1727072874618,150.0,0.00011083,2]
[338916466,1727072874640,150.0,0.00011083,2]
[338916467,1727072874663,150.0,0.00011083,2]
[338916468,1727072874684,150.0,0.00011083,2]
[338916469,1727072874705,52.82649659,0.00011083,2]
[338916470,1727072877083,-196.09350341,0.00011174,2]
[338916471,1727072878640,-150.0,0.00011154,2]
[338916472,1727072879097,-150.0,0.00011154,2]
[338916473,1727072879533,-150.0,0.00011154,2]
[338916474,1727072879994,-150.0,0.00011154,2]
[338916475,1727072880438,-150.0,0.00011154,2]
[338916476,1727072880875,-37.56,0.00011154,2]
[338916477,1727072880896,-112.44,0.00011174,2]
[338916478,1727072881801,-150.0,0.00011174,2]
[338916479,1727072883684,-150.0,0.00011174,2]
[338916480,1727072884626,-150.0,0.00011174,2]
[338916481,1727072885759,-150.0,0.00011174,2]
[338916482,1727072886329,-150.0,0.00011174,2]
[338916483,1727072886792,-150.0,0.00011174,2]
[338916484,1727072887242,-150.0,0.00011174,2]
[338916485,1727072888046,-150.0,0.00011174,2]
[338916486,1727072888630,-150.0,0.00011174,2]
[338916487,1727072889078,-150.0,0.00011174,2]
[338916488,1727072889520,-150.0,0.00011174,2]
[338916489,1727072891408,-150.0,0.00011174,2]
[338916490,1727072891894,-150.0,0.00011174,2]
[338916491,1727072892595,-150.0,0.00011174,2]
[338916492,1727072899992,150.0,0.00010084,2]
[338916493,1727072910802,-150.0,0.00011161,2]
[338916494,1727072911248,-150.0,0.00011161,2]
[338916501,1727072911710,-150.0,0.00011161,2]
[338916502,1727072912173,-150.0,0.00011161,2]
[338916503,1727072912663,-150.0,0.00011161,2]
[338916504,1727072913125,-150.0,0.00011161,2]
[338916505,1727072913586,-150.0,0.00011161,2]
[338916506,1727072914077,-150.0,0.00011161,2]
[338916507,1727072914530,-150.0,0.00011161,2]
[338916508,1727072914998,-150.0,0.00011161,2]
[338916509,1727072915454,-150.0,0.00011161,2]
[338916510,1727072916347,-150.0,0.00011161,2]
[338916511,1727072916742,-150.0,0.00011161,2]
[338916514,1727072970537,500.0,0.00010084,2]
[338916531,1727073031788,-50.0,0.00011161,2]
[338916532,1727073031798,-250.0,0.0001117,2]
[338916533,1727073031807,-73.22649659,0.00011174,2]
[338916534,1727073031817,-170.42,0.00011183,2]
[338916535,1727073031827,-1000.0,0.0001122,2]
[338916536,1727073031836,-250.0,0.00011402,2]
[338916537,1727073031846,-500.0,0.00011454,2]
[338916538,1727073031855,-420.84,0.00011539,2]
[338916539,1727073031865,-150.0,0.00011688,2]
[338916540,1727073031875,-150.0,0.00011688,2]
[338916541,1727073031885,-150.52089661,0.00011688,2]
[338916542,1727073031894,-150.0,0.00011688,2]
[338916543,1727073031904,-150.0,0.00011688,2]
[338916544,1727073031913,-150.11320978,0.00011688,2]
[338916545,1727073031922,-150.56664855,0.00011688,2]
[338916546,1727073031932,-150.0,0.00011688,2]
[338916547,1727073031941,-150.0,0.00011688,2]
[338916548,1727073031951,-150.0,0.00011707,2]
[338916549,1727073031960,-499.99,0.00011707,2]
[338916550,1727073031970,-150.0,0.00011723,2]
[338916551,1727073031979,-150.0,0.00011726,2]
[338916552,1727073031989,-150.0,0.00011745,2]
[338916553,1727073031999,-150.0,0.00011758,2]
[338916554,1727073032013,-150.0,0.00011764,2]
[338916555,1727073032023,-150.0,0.00011783,2]
[338916556,1727073032032,-150.0,0.00011793,2]
[338916557,1727073032041,-150.0,0.00011796,2]
[338916558,1727073032051,-150.0,0.00011802,2]
[338916559,1727073032060,-150.0,0.00011821,2]
[338916560,1727073032069,-150.0,0.00011828,2]
[338916561,1727073032079,-150.0,0.0001184,2]
[338916562,1727073032088,-150.0,0.0001186,2]
[338916563,1727073032097,-150.0,0.00011863,2]
[338916564,1727073032107,-150.0,0.00011863,2]
[338916565,1727073032116,-379.86,0.00011878,2]
[338916566,1727073032126,-150.0,0.00011879,2]
[338916567,1727073032136,-150.0,0.00011898,2]
[338916568,1727073032145,-150.0,0.00011898,2]
[338916569,1727073032154,-150.0,0.00011904,2]
[338916570,1727073032164,-150.0,0.00011917,2]
[338916571,1727073032174,-150.0,0.00011933,2]
[338916572,1727073032183,-150.0,0.00011936,2]
[338916573,1727073032195,-468.6,0.00011945,2]
[338916574,1727073032213,-150.0,0.00011955,2]
[338916575,1727073032223,-150.0,0.00011968,2]
[338916576,1727073032232,-150.0,0.00011974,2]
[338916577,1727073032242,-130.84877747,0.00011993,2]
[338916578,1727073032255,-19.15122253,0.00011993,2]
[338916579,1727073032274,-150.0,0.00012004,2]
[338916580,1727073032284,-150.0,0.00012012,2]
[338916581,1727073032293,-150.0,0.00012012,2]
[338916582,1727073032303,-250.0,0.00012029,2]
[338916583,1727073032312,-150.0,0.00012031,2]
[338916584,1727073032322,-150.0,0.00012039,2]
[338916585,1727073032331,-150.0,0.00012051,2]
[338916586,1727073032340,-150.0,0.0001207,2]
[338916587,1727073032350,-150.0,0.00012074,2]
[338916588,1727073032360,-150.0,0.00012089,2]
[338916589,1727073032370,-150.0,0.00012108,2]
[338916590,1727073032379,-150.0,0.00012109,2]
[338916591,1727073032389,-150.0,0.00012121,2]
[338916592,1727073032399,-150.0,0.00012121,2]
[338916593,1727073032408,-150.0,0.00012127,2]
[338916594,1727073032418,-175.01,0.00012135,2]
[338916595,1727073032428,-150.0,0.00012144,2]
[338916596,1727073032438,-150.0,0.00012146,2]
[338916597,1727073032447,-150.0,0.00012165,2]
[338916598,1727073032457,-150.0,0.00012179,2]
[338916599,1727073032466,-150.0,0.00012184,2]
[338916600,1727073032475,-570.71,0.000122,2]
[338916601,1727073032485,-150.0,0.00012203,2]
[338916602,1727073032494,-150.0,0.00012214,2]
[338916603,1727073032504,-150.0,0.00012222,2]
[338916604,1727073032519,-150.0,0.00012229,2]
[338916605,1727073032528,-150.0,0.00012241,2]
[338916606,1727073032538,-150.0,0.00012249,2]
[338916607,1727073032547,-150.0,0.00012261,2]
[338916608,1727073032556,-150.0,0.0001228,2]
[338916609,1727073032566,-150.0,0.00012284,2]
[338916610,1727073032575,-150.0,0.00012299,2]
[338916611,1727073032584,-362.97,0.00012304,2]
[338916612,1727073032593,-150.0,0.00012318,2]
[338916613,1727073032603,-150.0,0.00012319,2]
[338916614,1727073032613,-150.0,0.00012337,2]
[338916615,1727073032622,-150.0,0.00012337,2]
[338916616,1727073032632,-150.0,0.00012337,2]
[338916617,1727073032641,-150.0,0.00012355,2]
[338916618,1727073032651,-150.0,0.00012356,2]
[338916619,1727073032660,-150.0,0.00012375,2]
[338916620,1727073032669,-374.007,0.00012383,2]
[338916621,1727073032679,-150.0,0.0001239,2]
[338916622,1727073032688,-150.0,0.00012394,2]
[338916623,1727073032697,-150.0,0.00012413,2]
[338916624,1727073032707,-150.0,0.00012425,2]
[338916625,1727073032717,-150.0,0.00012432,2]
[338916626,1727073032726,-150.0,0.00012445,2]
[338916627,1727073032735,-150.0,0.00012452,2]
[338916628,1727073032745,-150.0,0.0001246,2]
[338916629,1727073032754,-150.0,0.00012471,2]
[338916630,1727073032767,-255.0,0.00012475,2]
[338916631,1727073032776,-150.0,0.0001249,2]
[338916632,1727073032786,-150.0,0.00012495,2]
[338916633,1727073032795,-150.0,0.00012509,2]
[338916634,1727073032804,-150.0,0.00012528,2]
[338916635,1727073032813,-150.0,0.0001253,2]
[338916636,1727073032823,-150.0,0.00012547,2]
[338916637,1727073032831,-150.0,0.00012553,2]
[338916638,1727073032841,-150.0,0.00012553,2]
[338916639,1727073032850,-150.0,0.00012565,2]
[338916640,1727073032859,-150.0,0.00012566,2]
[338916641,1727073032869,-150.0,0.00012585,2]
[338916642,1727073032878,-391.01,0.00012593,2]
[338916643,1727073032887,-753.56,0.000126,2]
[338916644,1727073032897,-150.0,0.000126,2]
[338916645,1727073032906,-150.0,0.00012604,2]
[338916646,1727073032915,-1000.0,0.00012622,2]
[338916647,1727073032924,-150.0,0.00012623,2]
[338916648,1727073032934,-150.0,0.00012635,2]
[338916649,1727073032943,-150.0,0.00012643,2]
[338916650,1727073032952,-150.0,0.00012662,2]
[338916651,1727073032961,-150.0,0.00012662,2]
[338916652,1727073032970,-150.0,0.0001267,2]
[338916653,1727073032979,-150.0,0.00012681,2]
[338916654,1727073032990,-150.0,0.000127,2]
[338916655,1727073032999,-150.0,0.00012706,2]
[338916656,1727073033011,-150.0,0.00012719,2]
[338916657,1727073033020,-421.94785814,0.00012719,2]
[338916658,1727073033029,-150.0,0.00012738,2]
[338916659,1727073033039,-150.0,0.00012741,2]
[338916660,1727073033049,-150.0,0.00012757,2]
[338916661,1727073033059,-150.0,0.0001277,2]
[338916662,1727073033068,-150.0,0.00012776,2]
[338916663,1727073033078,-150.0,0.00012776,2]
[338916664,1727073033087,-150.0,0.00012795,2]
[338916665,1727073033097,-22004.05171405,0.000128,2]
[338916666,1727073033117,-3300.0,0.000128,2]
[338916667,1727073037533,-6774.38416845,0.000128,2]
[338916668,1727073037542,-1296.0,0.000128,2]
[338916669,1727073037552,-150.0,0.00012811,2]
[338916670,1727073037562,-560.487,0.00012814,2]
[338916671,1727073037571,-1903.0,0.00012814,2]
[338916672,1727073037581,-812.0,0.00012814,2]
[338916673,1727073037590,-3470.47,0.00012814,2]
[338916674,1727073037600,-251.727,0.00012814,2]
[338916675,1727073037609,-1913.0,0.00012814,2]
[338916676,1727073037618,-451.678,0.00012814,2]
[338916677,1727073037628,-632.661,0.00012814,2]
[338916678,1727073037637,-1273.216,0.00012814,2]
[338916679,1727073037646,-150.0,0.00012814,2]
[338916680,1727073037655,-1559.679,0.00012814,2]
[338916681,1727073037665,-150.0,0.00012814,2]
[338916682,1727073037674,-500.0,0.00012824,2]
[338916683,1727073037683,-799.0,0.00012827,2]
[338916684,1727073037693,-150.0,0.00012834,2]
[338916685,1727073037702,-150.0,0.00012846,2]
[338916686,1727073037711,-150.0,0.00012853,2]
[338916687,1727073037720,-150.0,0.00012872,2]
[338916688,1727073037730,-150.0,0.00012878,2]
[338916689,1727073037739,-150.0,0.00012881,2]
[338916690,1727073037748,-150.0,0.00012891,2]
[338916691,1727073037758,-2400.0,0.00012899,2]
[338916692,1727073037767,-450.0,0.00012899,2]
[338916693,1727073037776,-486.5612,0.00012899,2]
[338916694,1727073037786,-3703.4253,0.000129,2]
[338916695,1727073037795,-167.6366,0.000129,2]
[338916696,1727073037805,-3181.2768,0.000129,2]
[338916697,1727073037815,-838.1828,0.000129,2]
[338916698,1727073037824,-225.4376,0.000129,2]
[338916699,1727073037834,-150.0,0.000129,2]
[338916700,1727073037844,-4677.45922213,0.000129,3]
[338916701,1727073037853,-2179.2752,0.000129,2]
[338916702,1727073037862,-182.37,0.000129,2]
[338916703,1727073037872,-562.97,0.000129,2]
[338916704,1727073037883,-153.54,0.000129,2]
[338916705,1727073037893,-151.28,0.000129,2]
[338916706,1727073037902,-778.89,0.000129,2]
[338916707,1727073037912,-470.254,0.000129,2]
[338916708,1727073037922,-300.86931318,0.000129,2]
[338916709,1727073037931,-753.56,0.000129,2]
[338916711,1727073037941,-1136.44,0.000129,2]
[338916713,1727073037951,-1010.12,0.000129,2]
[338916715,1727073037960,-151.34010265,0.000129,2]
[338916717,1727073037969,-798.5628256,0.000129,2]
[338916719,1727073037979,-282.81,0.000129,2]
[338916721,1727073037988,-160.37332946,0.000129,2]
[338916723,1727073037997,-160.37332946,0.000129,2]
[338916725,1727073038008,-160.37332946,0.000129,2]
[338916727,1727073038017,-160.37332946,0.000129,2]
[338916729,1727073038027,-160.37332946,0.000129,2]
[338916731,1727073038036,-160.37332946,0.000129,2]
[338916733,1727073038045,-160.37332946,0.000129,2]
[338916735,1727073038055,-160.37332946,0.000129,2]
[338916737,1727073038065,-160.37332946,0.000129,2]
[338916739,1727073038074,-160.37332946,0.000129,2]
[338916741,1727073038084,-160.37332946,0.000129,2]
[338916743,1727073038094,-160.37332946,0.000129,2]
[338916745,1727073038103,-160.87,0.000129,2]
[338916746,1727073038113,-153.74164833,0.000129,2]
[338916748,1727073038122,-153.74164833,0.000129,2]
[338916750,1727073038131,-153.74164833,0.000129,2]
[338916752,1727073038141,-153.74164833,0.000129,2]
[338916754,1727073038151,-153.74164833,0.000129,2]
[338916757,1727073038160,-153.74164833,0.000129,2]
[338916759,1727073038170,-153.74164833,0.000129,2]
[338916761,1727073038179,-153.74164833,0.000129,2]
[338916763,1727073038188,-153.74164833,0.000129,2]
[338916765,1727073038200,-153.74164833,0.000129,2]
[338916767,1727073038210,-153.74164833,0.000129,2]
[338916769,1727073038219,-153.74164833,0.000129,2]
[338916771,1727073038229,-153.74164833,0.000129,2]
[338916773,1727073038238,-153.74164833,0.000129,2]
[338916774,1727073038249,-153.74164833,0.000129,2]
[338916777,1727073038260,-153.74164833,0.000129,2]
[338916779,1727073038269,-153.74164833,0.000129,2]
[338916781,1727073038280,-153.74164833,0.000129,2]
[338916783,1727073038290,-154.24,0.000129,2]
[338916784,1727073038299,-17846.34552494,0.000129,2]
[338916786,1727073038308,-150.0,0.0001291,2]
[338916788,1727073038317,-150.0,0.00012916,2]
[338916790,1727073038327,-150.0,0.00012929,2]
[338916792,1727073038336,-255.0,0.00012943,2]
[338916794,1727073038346,-150.0,0.00012948,2]
[338916796,1727073038355,-150.0,0.00012951,2]
[338916798,1727073038365,-150.0,0.00012967,2]
[338916800,1727073038374,-500.0,0.00012973,2]
[338916802,1727073038383,-500.0,0.00012973,2]
[338916805,1727073038394,-501.97786434,0.00012973,2]
[338916807,1727073038404,-267.15378696,0.00012986,2]
[338916809,1727073038413,-150.0,0.00012986,2]
[338916811,1727073038423,-201.00000001,0.00012986,2]
[338916813,1727073038432,-150.8781928,0.00012986,2]
[338916815,1727073038442,-150.30160705,0.00012986,2]
[338916817,1727073038451,-1650.34,0.00012999,2]
[338916819,1727073038461,-1650.34,0.00012999,2]
[338916820,1727073038470,-1650.34,0.00012999,2]
[338916822,1727073038480,-1650.34,0.00012999,2]
[338916824,1727073038489,-1650.34,0.00012999,2]
[338916826,1727073038498,-1650.34,0.00012999,2]
[338916828,1727073038508,-1650.34,0.00012999,2]
[338916831,1727073038524,-1650.34,0.00012999,2]
[338916833,1727073038537,-1650.34,0.00012999,2]
[338916835,1727073038547,-1650.34,0.00012999,2]
[338916837,1727073038556,-1650.34,0.00012999,2]
[338916839,1727073038566,-1650.34,0.00012999,2]
[338916841,1727073038575,-1650.34,0.00012999,2]
[338916843,1727073038585,-1650.34,0.00012999,2]
[338916845,1727073038594,-1650.34,0.00012999,2]
[338916847,1727073038603,-1650.34,0.00012999,2]
[338916848,1727073038613,-1650.34,0.00012999,2]
[338916850,1727073038623,-1650.34,0.00012999,2]
[338916852,1727073038633,-1650.34,0.00012999,2]
[338916853,1727073038643,-1650.34,0.00012999,2]
[338916854,1727073038652,-1650.34,0.00012999,2]
[338916855,1727073038661,-1650.34,0.00012999,2]
[338916857,1727073038671,-1650.34,0.00012999,2]
[338916859,1727073038681,-1650.44922127,0.00012999,2]
[338916861,1727073038690,-11435.553,0.00012999,2]
[338916863,1727073038702,-137646.65887823,0.00013,2]
[338916865,1727073038711,-617089.88735363,0.00013,2]
[338916867,1727073038720,-977291.53201467,0.00013,2]
[338916974,1727073039773,-2475.35674932,0.00013,2]
[338916988,1727073039867,-9096.64373114,0.00013,2]
[338916990,1727073039879,-8947.21879473,0.00013,2]
[338916992,1727073039890,-8943.78386462,0.00013,2]
[338916994,1727073039902,-9077.54866152,0.00013,2]
[338916997,1727073039914,-8943.84023489,0.00013,2]
[338917242,1727073042550,-944.793,0.00012814,2]
[338917244,1727073042559,-5306.28460087,0.00013,2]
[338917456,1727073046592,-12747.46853423,0.00013,2]
[338917457,1727073068522,-150.0,0.00011576,2]
[338917458,1727073069008,-150.0,0.00011576,2]
[338917459,1727073069488,-150.0,0.00011576,2]
[338917460,1727073078321,150.0,0.00010084,2]
[338917461,1727073078343,150.0,0.00010084,2]
[338917462,1727073078364,150.0,0.00010084,2]
[338917463,1727073078386,50.0,0.00010084,2]
[338917465,1727073089819,-150.0,0.00011454,2]
[338917466,1727073090293,-150.0,0.00011454,2]
[338917467,1727073090695,-150.0,0.00011454,2]
[338917468,1727073110680,150.0,0.00010959,2]
[338917469,1727073110702,9.55,0.00010959,2]
[338917470,1727073113030,500.0,0.00010084,2]
[338917471,1727073121364,-50.0,0.00011454,2]